bitfinex-derivatives/quotes_ETHF0:USTF0_20260223
["timestamp","ask_amount","ask_price","bid_price","bid_amount"]
[1771833181905,0.76481551,1885.2,1884.9,1.81363003]
[1771833182105,0.52799934,1885.1,1884.9,1.81363003]
[1771833182299,0.23681617,1885.2,1884.9,1.81363003]
[1771833182501,0.52823011,1885.1,1884.9,1.81363003]
[1771833182706,0.23681617,1885.2,1884.9,1.81363003]
[1771833182906,0.52823006,1885.1,1884.9,1.81363003]
[1771833183105,0.23681617,1885.2,1884.9,1.81363003]
[1771833183298,0.52822973,1885.1,1884.9,1.81363003]
[1771833183502,0.23681617,1885.2,1884.9,1.81363003]
[1771833183702,0.52829279,1885.1,1884.9,1.81363003]
[1771833183902,0.26505346,1885.4,1884.9,1.81363003]
[1771833184103,7.83648756,1885.3,1884.9,1.81363003]
[1771833184302,7.5714341,1885.2,1884.9,1.81363003]
[1771833184502,0.52829293,1885.1,1884.9,1.81363003]
[1771833184702,0.26505346,1885.3,1884.9,1.81363003]
[1771833184902,7.57165577,1885.2,1884.9,1.81363003]
[1771833185103,0.52830868,1885.1,1884.9,1.81363003]
[1771833185303,0.26505346,1885.3,1884.9,1.81363003]
[1771833185599,7.57182559,1885.2,1884.9,1.81363003]
[1771833185905,0.52832079,1885.1,1884.9,1.81363003]
[1771833186107,0.26505346,1885.3,1884.9,1.81363003]
[1771833186307,7.57188347,1885.2,1884.9,1.81363003]
[1771833186510,0.52832092,1885.1,1884.9,1.81363003]
[1771833186711,0.26505346,1885.3,1884.9,1.81363003]
[1771833186911,7.57201187,1885.2,1884.9,1.81363003]
[1771833187105,0.52833452,1885.1,1884.9,1.81363003]
[1771833187408,0.26505346,1885.3,1884.9,1.81363003]
[1771833187711,7.57223085,1885.2,1884.9,1.81363003]
[1771833187909,0.52834999,1885.1,1884.9,1.81363003]
[1771833188111,0.26505346,1885.3,1884.9,1.81363003]
[1771833188409,7.89162643,1885.2,1884.9,1.81363003]
[1771833188708,0.52834997,1885.1,1884.3,1.78624601]
[1771833188909,0.31932911,1885.2,1884.3,1.78624601]
[1771833189209,0.52836945,1885.1,1884.3,1.78624601]
[1771833189508,0.31932911,1885.2,1884.3,1.78624601]
[1771833189706,0.52838953,1885.1,1884.3,1.78624601]
[1771833189906,0.31932911,1885.2,1884.3,1.78624601]
[1771833190106,0.52838953,1885.1,1884.3,1.78624601]
[1771833190308,0.31932911,1885.2,1884.3,1.78624601]
[1771833190509,0.52843327,1885.1,1884.3,1.78624601]
[1771833190710,0.31932911,1885.2,1884.3,1.78624601]
[1771833191012,0.52843327,1885.1,1884.3,1.78624601]
[1771833191210,1.74072151,1885.3,1884.3,1.78624601]
[1771833191405,7.57669286,1885.2,1884.3,1.78624601]
[1771833191601,0.52848518,1885.1,1884.3,1.78624601]
[1771833191908,0.52847775,1885.0,1884.3,1.78624601]
[1771833192109,1.74072151,1885.2,1884.3,1.78624601]
[1771833192300,0.5284777,1885.1,1884.3,1.78624601]
[1771833192505,0.5284777,1885.0,1884.3,1.78624601]
[1771833192808,1.74072151,1885.2,1884.3,1.78624601]
[1771833193008,0.52847498,1885.1,1884.3,1.78624601]
[1771833193210,1.74072151,1885.2,1884.3,1.78624601]
[1771833193211,2.26919649,1885.0,1884.3,1.78624601]
[1771833193413,1.74072151,1885.0,1884.3,1.78624601]
[1771833193604,1.74072151,1884.8,1884.3,1.78624601]
[1771833193805,7.57636908,1884.9,1884.3,1.78624601]
[1771833193806,1.74072151,1884.6,1884.3,1.78624601]
[1771833194006,0.52839406,1884.5,1884.3,1.78624601]
[1771833194312,1.74072151,1884.6,1884.3,1.78624601]
[1771833194614,0.56610596,1884.5,1884.3,1.78624601]
[1771833194815,1.74072151,1884.6,1884.3,1.78624601]
[1771833195115,0.56610512,1884.5,1884.3,1.78624601]
[1771833195314,1.74072151,1884.7,1884.3,1.78624601]
[1771833195515,0.56573204,1884.6,1884.3,1.78624601]
[1771833195808,1.74072151,1884.8,1884.3,1.78624601]
[1771833196014,0.56573275,1884.7,1884.3,1.78624601]
[1771833196208,0.56573275,1884.6,1884.3,1.78624601]
[1771833196414,1.74072151,1884.8,1884.3,1.78624601]
[1771833196611,0.56548551,1884.7,1884.3,1.78624601]
[1771833196910,0.56548551,1884.6,1884.3,1.78624601]
[1771833197213,1.74072151,1884.7,1884.3,1.78624601]
[1771833199713,1.74072151,1884.7,1884.2,1.85068566]
[1771833200616,1.85659372,1884.9,1884.2,1.85068566]
[1771833200919,0.56494871,1884.8,1884.2,1.85068566]
[1771833201116,0.56494871,1884.7,1884.2,1.85068566]
[1771833201414,1.85659372,1884.9,1884.2,1.85068566]
[1771833201615,2.42145962,1884.8,1884.2,1.85068566]
[1771833201914,2.42145962,1884.7,1884.2,1.85068566]
[1771833202215,1.85659372,1884.7,1884.2,1.85068566]
[1771833216626,1.4730329,1884.5,1884.2,0.00431962]
[1771833216823,1.4730329,1884.5,1883.8,1.84636604]
[1771833217026,0.56506426,1884.4,1883.8,1.84636604]
[1771833217320,1.4730329,1884.5,1883.8,1.84636604]
[1771833217521,2.01245419,1884.4,1883.8,1.84636604]
[1771833217725,1.44734718,1884.4,1883.8,1.84636604]
[1771833217928,1.44734718,1884.4,1883.8,1.85095957]
[1771833220728,1.65313975,1884.8,1884.1,1.84636604]
[1771833220923,0.56542449,1884.7,1884.1,1.84636604]
[1771833221127,0.56542449,1884.6,1884.1,1.84636604]
[1771833221328,1.65313975,1884.8,1884.1,1.84636604]
[1771833221628,0.56569044,1884.7,1884.1,1.84636604]
[1771833221828,0.56569044,1884.6,1884.1,1.84636604]
[1771833222128,1.65313975,1884.8,1884.1,1.84636604]
[1771833222430,0.56569044,1884.7,1884.1,1.84636604]
[1771833222633,0.56569044,1884.6,1884.1,1.84636604]
[1771833222833,1.34916274,1884.8,1884.1,1.84636604]
[1771833223031,0.56597798,1884.7,1884.1,1.84636604]
[1771833223231,0.56597798,1884.6,1884.1,1.84636604]
[1771833223429,1.34916274,1884.8,1884.1,1.84636604]
[1771833223631,0.56627162,1884.7,1884.1,1.84636604]
[1771833223829,0.56627162,1884.6,1884.1,1.84636604]
[1771833224032,1.34916274,1884.8,1884.1,1.84636604]
[1771833224332,0.56627231,1884.7,1884.1,1.84636604]
[1771833224532,0.56627231,1884.6,1884.1,1.84636604]
[1771833224728,1.34916274,1884.8,1884.1,1.84636604]
[1771833225027,0.56626804,1884.7,1884.1,1.84636604]
[1771833225226,0.56626804,1884.6,1884.1,1.84636604]
[1771833225429,1.34916274,1884.8,1884.1,1.84636604]
[1771833225727,0.56626213,1884.7,1884.1,1.84636604]
[1771833225928,0.56626213,1884.6,1884.1,1.84636604]
[1771833226129,1.34916274,1884.8,1884.1,1.84636604]
[1771833226335,0.56626259,1884.7,1884.1,1.84636604]
[1771833226633,0.56626259,1884.6,1884.1,1.84636604]
[1771833226834,1.34916274,1884.8,1884.1,1.84636604]
[1771833227035,0.56625693,1884.7,1884.1,1.84636604]
[1771833227329,1.27633341,1885.0,1884.1,1.84636604]
[1771833227531,7.05215632,1884.9,1884.4,1.51496538]
[1771833227834,1.27633341,1885.0,1884.4,1.51496538]
[1771833228031,8.41599683,1884.9,1884.4,1.51496538]
[1771833228232,1.36419643,1884.9,1884.4,1.51496538]
[1771833233636,1.36419643,1885.1,1884.4,1.51496538]
[1771833233839,1.36419643,1885.2,1884.4,1.51496538]
[1771833234039,7.04725248,1885.1,1884.4,1.51496538]
[1771833234237,1.36419643,1885.2,1884.4,1.51496538]
[1771833234436,8.41030837,1885.1,1884.4,1.51496538]
[1771833234639,1.36419643,1885.1,1884.4,1.51496538]
[1771833239447,0.56137725,1885.0,1884.4,1.51496538]
[1771833239647,1.36419643,1885.1,1884.4,1.51496538]
[1771833239847,0.56137727,1885.0,1884.4,1.51496538]
[1771833240048,1.36419643,1885.1,1884.4,1.51496538]
[1771833240247,0.56137727,1885.0,1884.4,1.51496538]
[1771833240449,1.36419643,1885.1,1884.4,1.51496538]
[1771833240747,0.56135517,1885.0,1884.4,1.51496538]
[1771833240948,1.36419643,1885.1,1884.4,1.51496538]
[1771833241148,0.56135519,1885.0,1884.4,1.51496538]
[1771833241349,1.36419643,1885.1,1884.4,1.51496538]
[1771833241550,0.56131242,1885.0,1884.4,1.51496538]
[1771833241751,1.36419643,1885.1,1884.4,1.51496538]
[1771833242050,0.5613125,1885.0,1884.4,1.51496538]
[1771833242250,1.36419643,1885.1,1884.4,1.51496538]
[1771833242445,1.36419643,1884.9,1884.4,1.51496538]
[1771833243551,1.36419643,1885.2,1884.4,1.51496538]
[1771833243752,8.96616313,1885.1,1884.4,1.51496538]
[1771833243951,0.56127064,1885.0,1884.4,1.51496538]
[1771833244155,0.56127064,1884.9,1884.4,1.51496538]
[1771833244453,1.36419643,1885.0,1884.4,1.51496538]
[1771833244648,0.56125361,1884.9,1884.4,1.51496538]
[1771833244849,1.36419643,1885.0,1884.4,1.51496538]
[1771833245151,0.56125362,1884.9,1884.4,1.51496538]
[1771833245451,1.36419643,1885.0,1884.4,1.51496538]
[1771833245652,1.925438,1884.9,1884.4,1.51496538]
[1771833245853,1.36419643,1884.9,1884.4,1.51496538]
[1771833247855,1.36419643,1885.2,1884.4,1.51496538]
[1771833248157,4.71981096,1885.3,1884.4,1.51496538]
[1771833248158,1.36419643,1885.0,1884.4,1.51496538]
[1771833248356,0.56134148,1884.9,1884.4,1.51496538]
[1771833248556,1.36419643,1885.0,1884.4,1.51496538]
[1771833248754,1.92567156,1884.9,1884.4,1.51496538]
[1771833248956,1.36419643,1884.9,1884.4,1.51496538]
[1771833249256,1.36419643,1884.9,1884.5,1.51496538]
[1771833253358,0.56206699,1884.8,1884.5,1.51496538]
[1771833253559,1.36419643,1884.9,1884.5,1.51496538]
[1771833253758,0.56206699,1884.8,1884.5,1.51496538]
[1771833253956,1.36419643,1884.9,1884.5,1.51496538]
[1771833254258,0.56206698,1884.8,1884.5,1.51496538]
[1771833254459,1.36419643,1884.9,1884.5,1.51496538]
[1771833254659,0.56214017,1884.8,1884.5,1.51496538]
[1771833254859,1.36419643,1884.9,1884.5,1.51496538]
[1771833255160,0.56214017,1884.8,1884.5,1.51496538]
[1771833255360,1.36419643,1884.9,1884.5,1.51496538]
[1771833255562,0.5622303,1884.8,1884.5,1.51496538]
[1771833255761,1.36419643,1884.9,1884.5,1.51496538]
[1771833255963,0.5622303,1884.8,1884.5,1.51496538]
[1771833256162,1.36419643,1884.9,1884.5,1.51496538]
[1771833256363,0.56234347,1884.8,1884.5,1.51496538]
[1771833256662,1.36419643,1884.9,1884.5,1.51496538]
[1771833256867,0.56234347,1884.8,1884.5,1.51496538]
[1771833257059,1.36419643,1884.9,1884.5,1.51496538]
[1771833257258,0.56234347,1884.8,1884.5,1.51496538]
[1771833257460,1.36419643,1884.9,1884.5,1.51496538]
[1771833257760,0.56250967,1884.8,1884.5,1.51496538]
[1771833257959,1.36419643,1884.9,1884.5,1.51496538]
[1771833258159,1.1228636,1884.7,1884.3,1.22764101]
[1771833258357,1.685375,1884.6,1884.3,1.22764101]
[1771833258662,1.1228636,1884.6,1883.9,1.22764101]
[1771833259365,1.1228636,1884.6,1884.0,1.80168112]
[1771833259568,1.1228636,1885.0,1884.1,1.22764101]
[1771833259762,1.1228636,1884.8,1884.1,1.22764101]
[1771833259957,0.56239123,1884.7,1884.1,1.22764101]
[1771833260163,0.56239123,1884.6,1884.1,1.22764101]
[1771833260365,1.1228636,1884.7,1884.1,1.22764101]
[1771833260566,0.56230018,1884.6,1884.5,1.22764101]
[1771833260761,1.1228636,1884.9,1884.5,1.22764101]
[1771833260961,1.1228636,1885.0,1884.5,1.22764101]
[1771833263868,1.1228636,1885.1,1884.5,1.22764101]
[1771833264067,8.17461529,1885.0,1884.5,1.22764101]
[1771833264267,1.1228636,1885.0,1884.5,1.22764101]
[1771833265366,1.11791258,1885.1,1884.5,1.22764101]
[1771833265567,8.16947198,1885.0,1884.5,1.22764101]
[1771833265768,1.11791258,1885.0,1884.5,1.22764101]
[1771833270571,1.04952024,1885.4,1884.9,1.22764101]
[1771833270879,7.05084854,1885.3,1884.9,1.22764101]
[1771833271175,1.04952024,1885.4,1884.9,1.22764101]
[1771833271375,8.0867347,1885.3,1884.9,1.22764101]
[1771833271578,1.03740692,1885.3,1884.9,1.22764101]
[1771833272177,1.03687084,1885.5,1885.1,1.22764101]
[1771833272678,0.55782082,1885.4,1885.1,1.22764101]
[1771833272878,0.55782082,1885.3,1885.1,1.22764101]
[1771833273078,1.03687084,1885.5,1885.1,1.22764101]
[1771833273276,0.55782101,1885.4,1885.1,1.22764101]
[1771833273475,1.03687084,1885.5,1885.1,1.22764101]
[1771833273675,0.5576043,1885.4,1885.1,1.22764101]
[1771833273877,1.03687084,1885.5,1885.1,1.22764101]
[1771833274179,0.5576043,1885.4,1885.1,1.22764101]
[1771833274378,1.03687084,1885.5,1885.1,1.22764101]
[1771833274579,0.55742962,1885.4,1885.1,1.22764101]
[1771833274775,1.03687084,1885.5,1885.1,1.22764101]
[1771833274974,0.55742969,1885.4,1885.1,1.22764101]
[1771833275276,1.03687084,1885.5,1885.1,1.22764101]
[1771833275475,0.55728211,1885.4,1885.1,1.22764101]
[1771833275679,1.03687084,1885.5,1885.1,1.22764101]
[1771833275978,1.53685391,1885.4,1885.1,1.22764101]
[1771833276279,0.97957182,1885.4,1885.1,1.22764101]
[1771833276777,0.96797471,1885.5,1885.1,1.22764101]
[1771833276976,0.55715929,1885.4,1885.1,1.22764101]
[1771833277180,0.96797471,1885.5,1885.1,1.22764101]
[1771833277377,0.55705483,1885.4,1885.1,1.22764101]
[1771833277579,0.94790499,1885.4,1885.1,1.22764101]
[1771833280182,0.94790499,1885.4,1884.9,1.22764101]
[1771833282181,0.8989933,1885.0,1884.7,1.22764101]
[1771833291688,0.77202112,1885.2,1884.7,1.22764101]
[1771833291990,0.55714211,1885.1,1884.7,1.22764101]
[1771833292190,0.77202112,1885.2,1884.7,1.22764101]
[1771833292389,0.55720751,1885.1,1884.7,1.22764101]
[1771833292591,0.77202112,1885.2,1884.7,1.22764101]
[1771833292790,0.55720748,1885.1,1884.7,1.22764101]
[1771833292990,0.77202112,1885.2,1884.7,1.22764101]
[1771833293189,0.5572075,1885.1,1884.7,1.22764101]
[1771833293392,0.75332784,1885.1,1884.7,1.22764101]
[1771833295189,2.53980942,1884.9,1884.1,1.0078056]
[1771833295593,0.72056776,1884.8,1884.1,1.0078056]
[1771833297995,0.70579462,1884.4,1884.0,1.0078056]
[1771833298495,0.69706927,1884.5,1884.0,1.0078056]
[1771833300898,0.68551483,1884.7,1884.0,1.0078056]
[1771833301095,0.68551483,1884.5,1884.0,1.0078056]
[1771833301601,0.67586526,1884.1,1883.8,1.01239913]
[1771833301898,0.67960889,1884.1,1883.8,1.01239913]
[1771833302194,0.67960889,1884.5,1884.0,1.0078056]
[1771833302395,0.93660747,1884.8,1884.2,1.0078056]
[1771833302594,1.22740496,1884.7,1884.2,1.0078056]
[1771833302794,0.55614584,1884.6,1884.2,1.0078056]
[1771833303094,0.0058107,1884.6,1884.2,1.0078056]
[1771833303591,6.53112,1883.9,1882.6,14.94477221]
[1771833303796,6.53112,1883.9,1882.7,1.0078056]
[1771833303797,1.80168112,1883.6,1882.7,1.0078056]
[1771833303995,0.6581855,1883.9,1883.3,1.0078056]
[1771833304195,1.21414539,1883.8,1883.3,1.0078056]
[1771833304394,0.6581855,1883.8,1883.3,1.0078056]
[1771833304599,0.65002738,1884.1,1883.4,1.0078056]
[1771833316803,0.88444787,1884.2,1883.4,2.81168434]
[1771833317002,0.88444787,1884.2,1883.5,1.0078056]
[1771833317003,0.26545,1884.2,1883.5,1.0078056]
[1771833317203,0.87729209,1884.2,1883.5,1.0078056]
[1771833324912,0.55723873,1884.1,1883.5,1.0078056]
[1771833326820,0.55623862,1884.0,1883.5,1.0078056]
[1771833327019,0.55723873,1884.1,1883.5,1.0078056]
[1771833327222,0.55667352,1884.0,1883.5,1.0078056]
[1771833327414,0.55723873,1884.1,1883.5,1.0078056]
[1771833327609,0.55670869,1884.0,1883.5,1.0078056]
[1771833327915,0.55723873,1884.1,1883.5,1.0078056]
[1771833328116,0.55670869,1884.0,1883.5,1.0078056]
[1771833328313,0.55723873,1884.1,1883.5,1.0078056]
[1771833328516,0.55689053,1884.0,1883.5,1.0078056]
[1771833328718,0.55723873,1884.1,1883.5,1.0078056]
[1771833329021,0.55689046,1884.0,1883.5,1.0078056]
[1771833329224,0.55723873,1884.1,1883.5,1.0078056]
[1771833329425,0.55707693,1884.0,1883.5,1.0078056]
[1771833329723,0.55723873,1884.1,1883.5,1.0078056]
[1771833329917,0.55710622,1884.0,1883.5,1.0078056]
[1771833330118,0.55723873,1884.1,1883.5,1.0078056]
[1771833330314,0.55710619,1884.0,1883.5,1.0078056]
[1771833330616,0.55710619,1883.9,1883.5,1.0078056]
[1771833330818,0.55723873,1884.1,1883.5,1.0078056]
[1771833331018,0.55713391,1884.0,1883.5,1.0078056]
[1771833331220,0.55713391,1883.9,1883.5,1.0078056]
[1771833331522,0.55723873,1884.1,1883.5,1.0078056]
[1771833331725,0.55738391,1884.0,1883.5,1.0078056]
[1771833331921,0.55738391,1883.9,1883.5,1.0078056]
[1771833332225,0.55723873,1884.1,1883.5,1.0078056]
[1771833332426,7.73627112,1884.0,1883.5,1.0078056]
[1771833332625,0.5573839,1883.9,1883.5,1.0078056]
[1771833332825,0.55723873,1884.1,1883.5,1.0078056]
[1771833333025,7.73643143,1884.0,1883.5,1.0078056]
[1771833333222,0.5575455,1883.9,1883.5,1.0078056]
[1771833333525,0.55804463,1883.8,1883.5,1.0078056]
[1771833333726,0.55723873,1884.1,1883.5,1.0078056]
[1771833333927,7.74335643,1884.0,1883.5,1.0078056]
[1771833334224,0.55723873,1884.1,1883.5,1.0078056]
[1771833334225,0.55804462,1883.9,1883.5,1.0078056]
[1771833334527,0.55804462,1883.8,1883.5,1.0078056]
[1771833334723,0.55723873,1884.1,1883.5,1.0078056]
[1771833335024,7.74788643,1884.0,1883.5,1.0078056]
[1771833335226,7.74788643,1883.9,1883.5,1.0078056]
[1771833335421,0.55837114,1883.8,1883.5,1.0078056]
[1771833335622,0.55723873,1884.1,1883.5,1.0078056]
[1771833335824,7.74797537,1884.0,1883.5,1.0078056]
[1771833336016,7.74797537,1883.9,1883.5,1.0078056]
[1771833336221,0.55837756,1883.8,1883.5,1.0078056]
[1771833336426,0.55723873,1884.1,1883.5,1.0078056]
[1771833336624,7.74806152,1884.0,1883.5,1.0078056]
[1771833336821,7.74806152,1883.9,1883.5,1.0078056]
[1771833337026,0.55838377,1883.8,1883.5,1.0078056]
[1771833337228,0.55723873,1884.1,1883.5,1.0078056]
[1771833337425,7.74809422,1884.0,1883.5,1.0078056]
[1771833337622,7.74809422,1883.9,1883.5,1.0078056]
[1771833337821,0.55838385,1883.8,1883.5,1.0078056]
[1771833338021,0.55723873,1884.1,1883.5,1.0078056]
[1771833338222,7.74813575,1884.0,1883.5,1.0078056]
[1771833338424,7.74813575,1883.9,1883.5,1.0078056]
[1771833338628,0.55839012,1883.8,1883.5,1.0078056]
[1771833338929,0.55723873,1884.1,1883.5,1.0078056]
[1771833339129,7.74826841,1884.0,1883.5,1.0078056]
[1771833339429,7.74826841,1883.9,1883.5,1.0078056]
[1771833339727,0.55839972,1883.8,1883.5,1.0078056]
[1771833339926,0.55723873,1884.1,1883.5,1.0078056]
[1771833340127,7.74842165,1884.0,1883.5,1.0078056]
[1771833340326,7.74842165,1883.9,1883.5,1.0078056]
[1771833340526,0.55841077,1883.8,1883.5,1.0078056]
[1771833340722,0.55723873,1884.1,1883.5,1.0078056]
[1771833340918,7.75049761,1884.0,1883.5,1.0078056]
[1771833341128,0.55842387,1883.9,1883.5,1.0078056]
[1771833341329,0.55842387,1883.8,1883.5,1.0078056]
[1771833341519,0.55723873,1884.1,1883.5,1.0078056]
[1771833341721,8.19318055,1884.0,1883.5,1.0078056]
[1771833341923,0.55843943,1883.9,1883.5,1.0078056]
[1771833342123,0.55843943,1883.8,1883.5,1.0078056]
[1771833342336,0.44246663,1884.0,1883.5,1.0078056]
[1771833342632,0.55846241,1883.9,1883.5,1.0078056]
[1771833342822,0.55846241,1883.8,1883.5,1.0078056]
[1771833343023,0.43708516,1884.1,1883.5,1.0078056]
[1771833343222,7.75103406,1884.0,1883.5,1.0078056]
[1771833343429,0.55846238,1883.9,1883.5,1.0078056]
[1771833343630,0.55846238,1883.8,1883.5,1.0078056]
[1771833343832,0.43708516,1884.1,1883.5,1.0078056]
[1771833344026,8.18331246,1884.0,1883.5,1.0078056]
[1771833344229,0.55848846,1883.9,1883.5,1.0078056]
[1771833344424,0.55848846,1883.8,1883.5,1.0078056]
[1771833344631,0.43191535,1884.0,1883.5,1.0078056]
[1771833344830,7.75188599,1883.9,1883.5,1.0078056]
[1771833345032,0.55852358,1883.8,1883.5,1.0078056]
[1771833345234,0.42665634,1884.1,1883.5,1.0078056]
[1771833345432,7.75188562,1884.0,1883.5,1.0078056]
[1771833345736,0.55852359,1883.9,1883.5,1.0078056]
[1771833346034,0.55852359,1883.8,1883.5,1.0078056]
[1771833346236,0.42029203,1884.0,1883.5,1.0078056]
[1771833346536,7.75391792,1883.9,1883.5,1.0078056]
[1771833346734,0.55867885,1883.8,1883.5,1.0078056]
[1771833346936,0.4151566,1884.1,1883.5,1.0078056]
[1771833347136,7.75391792,1884.0,1883.5,1.0078056]
[1771833347437,0.55867885,1883.9,1883.5,1.0078056]
[1771833347637,0.55867885,1883.8,1883.5,1.0078056]
[1771833347837,0.4151566,1884.1,1883.5,1.0078056]
[1771833348037,7.75389399,1884.0,1883.5,1.0078056]
[1771833348229,4.44261855,1884.2,1883.5,1.0078056]
[1771833348435,0.39406408,1884.5,1883.7,0.76364732]
[1771833348634,0.26537,1884.7,1883.7,0.76364732]
[1771833348635,7.58532871,1884.4,1883.7,0.76364732]
[1771833348835,0.39395323,1884.4,1883.7,0.76364732]
[1771833350139,0.38142151,1884.5,1883.7,0.76364732]
[1771833350537,0.38251082,1884.6,1883.7,0.76364732]
[1771833350739,7.17119451,1884.5,1883.7,0.76364732]
[1771833350936,0.38251082,1884.6,1883.7,0.76364732]
[1771833351138,7.54781091,1884.5,1883.7,0.76364732]
[1771833351339,0.37661359,1884.5,1883.7,0.76364732]
[1771833360343,0.55299839,1884.4,1883.7,0.76364732]
[1771833360546,0.37661359,1884.5,1883.7,0.76364732]
[1771833360747,0.55298788,1884.4,1883.7,0.76364732]
[1771833360948,0.37661359,1884.5,1883.7,0.76364732]
[1771833361143,0.55298788,1884.4,1883.7,0.76364732]
[1771833361342,0.37661359,1884.5,1883.7,0.76364732]
[1771833361544,0.55296456,1884.4,1883.7,0.76364732]
[1771833361746,0.37661359,1884.5,1883.7,0.76364732]
[1771833361943,0.55296502,1884.4,1883.7,0.76364732]
[1771833362143,0.37661359,1884.5,1883.7,0.76364732]
[1771833362347,0.55296502,1884.4,1883.7,0.76364732]
[1771833362546,0.37661359,1884.5,1883.7,0.76364732]
[1771833362746,0.55294569,1884.4,1883.7,0.76364732]
[1771833362947,0.37661359,1884.5,1883.7,0.76364732]
[1771833363246,0.55294569,1884.4,1883.7,0.76364732]
[1771833363550,0.0058107,1884.6,1884.0,0.76364732]
[1771833363748,0.55294186,1884.5,1884.0,0.76364732]
[1771833363949,0.0058107,1884.6,1884.0,0.76364732]
[1771833364147,0.31851517,1884.4,1884.0,0.76364732]
[1771833364352,0.31851517,1884.4,1883.9,0.76364732]
[1771833371055,0.31013113,1884.5,1883.9,0.76364732]
[1771833371251,0.55315793,1884.4,1883.9,0.76364732]
[1771833371452,0.31013113,1884.5,1883.9,0.76364732]
[1771833371753,0.55323046,1884.4,1883.9,0.76364732]
[1771833371955,0.31013113,1884.5,1883.9,0.76364732]
[1771833372154,0.55323046,1884.4,1883.9,0.76364732]
[1771833372357,0.55329888,1884.3,1883.9,0.76364732]
[1771833372655,0.30499787,1884.6,1883.9,0.76364732]
[1771833372856,8.01103904,1884.5,1883.9,0.76364732]
[1771833373056,0.55331747,1884.4,1883.9,0.76364732]
[1771833373356,0.55331747,1884.3,1883.9,0.76364732]
[1771833373553,0.29908407,1884.5,1883.9,0.76364732]
[1771833373853,0.55342274,1884.4,1883.9,0.76364732]
[1771833374055,0.29908407,1884.5,1883.9,0.76364732]
[1771833374255,0.55342976,1884.4,1883.9,0.76364732]
[1771833374446,0.55354628,1884.3,1883.9,0.76364732]
[1771833374646,0.29908407,1884.5,1883.9,0.76364732]
[1771833374855,0.55354627,1884.4,1883.9,0.76364732]
[1771833375155,0.55354627,1884.3,1883.9,0.76364732]
[1771833375457,0.27614314,1884.6,1883.9,0.76364732]
[1771833375754,0.08999596,1884.5,1884.3,0.76364732]
[1771833375958,0.26333158,1884.5,1883.9,0.76364732]
[1771833376456,0.26333158,1884.5,1884.1,0.76364732]
[1771833376659,0.26560318,1884.6,1884.1,0.76364732]
[1771833377659,0.0058107,1884.6,1884.3,0.70212768]
[1771833378450,0.23698573,1884.8,1884.3,0.70212768]
[1771833378656,7.16780675,1884.7,1884.3,0.70212768]
[1771833378955,4.4445295,1884.9,1884.3,0.70212768]
[1771833379154,7.16780675,1884.8,1884.3,0.70212768]
[1771833379357,7.16780675,1884.7,1884.3,0.70212768]
[1771833379660,0.00509994,1884.7,1884.3,0.70212768]
[1771833386062,0.18524403,1884.7,1884.3,0.70212768]
[1771833387766,0.54992964,1884.6,1884.3,0.70212768]
[1771833388067,0.18524403,1884.7,1884.3,0.70212768]
[1771833388365,0.54992964,1884.6,1884.3,0.70212768]
[1771833388567,0.18524403,1884.7,1884.3,0.70212768]
[1771833388767,0.54991113,1884.6,1884.3,0.70212768]
[1771833388964,0.18524403,1884.7,1884.3,0.70212768]
[1771833389163,0.54991113,1884.6,1884.3,0.70212768]
[1771833389366,0.18524403,1884.7,1884.3,0.70212768]
[1771833389564,0.54989965,1884.6,1884.3,0.70212768]
[1771833389763,0.00509994,1884.7,1884.3,0.70212768]
[1771833389969,0.17885079,1884.7,1884.3,0.70212768]
[1771833390469,0.54989387,1884.6,1884.3,0.70212768]
[1771833390670,0.17885079,1884.7,1884.3,0.70212768]
[1771833390870,0.54989386,1884.6,1884.3,0.70212768]
[1771833391170,0.17885079,1884.7,1884.3,0.70212768]
[1771833391370,0.54989386,1884.6,1884.3,0.70212768]
[1771833391570,0.17885079,1884.7,1884.3,0.70212768]
[1771833391766,0.54988994,1884.6,1884.3,0.70212768]
[1771833391968,0.00509994,1884.7,1884.3,0.70212768]
[1771833392164,0.54988994,1884.6,1884.3,0.70212768]
[1771833392365,0.00509994,1884.7,1884.3,0.70212768]
[1771833392672,0.54988822,1884.6,1884.3,0.70212768]
[1771833392869,0.00509994,1884.7,1884.3,0.70212768]
[1771833393168,0.54988819,1884.6,1884.3,0.70212768]
[1771833393371,0.00509994,1884.7,1884.3,0.70212768]
[1771833393570,0.54989251,1884.6,1884.3,0.70212768]
[1771833393770,0.00509994,1884.7,1884.3,0.70212768]
[1771833393970,0.54989251,1884.6,1884.3,0.70212768]
[1771833394171,0.00509994,1884.7,1884.3,0.70212768]
[1771833394371,0.54989251,1884.6,1884.3,0.70212768]
[1771833394574,0.00509994,1884.7,1884.3,0.70212768]
[1771833394970,0.15757077,1885.1,1884.5,0.73089315]
[1771833395170,7.8641908,1885.0,1884.5,0.73089315]
[1771833395375,0.54992296,1884.9,1884.5,0.73089315]
[1771833395674,0.54992296,1884.8,1884.5,0.73089315]
[1771833395879,0.15757077,1885.0,1884.5,0.73089315]
[1771833396173,0.54990311,1884.9,1884.5,0.73089315]
[1771833396381,0.54990311,1884.8,1884.5,0.73089315]
[1771833396580,0.16432001,1885.0,1884.5,0.73089315]
[1771833396778,0.54989578,1884.9,1884.5,0.73089315]
[1771833397078,0.54989578,1884.8,1884.5,0.73089315]
[1771833397281,0.16432001,1885.0,1884.5,0.73089315]
[1771833397476,0.54990164,1884.9,1884.5,0.73089315]
[1771833397682,0.54990164,1884.8,1884.5,0.73089315]
[1771833397979,0.16432001,1885.0,1884.5,0.73089315]
[1771833398179,0.54990165,1884.9,1884.5,0.73089315]
[1771833398381,0.14497019,1884.7,1884.4,1.80287159]
[1771833398574,0.00674924,1885.0,1883.7,0.79279096]
[1771833398575,2.49776015,1884.6,1884.1,0.73089315]
[1771833398878,0.69491768,1884.5,1884.1,0.73089315]
[1771833399078,0.14501248,1884.6,1884.1,0.73089315]
[1771833399275,0.5499015,1884.5,1884.1,0.73089315]
[1771833399475,0.14501248,1884.6,1884.1,0.73089315]
[1771833399979,0.54995193,1884.5,1884.1,0.73089315]
[1771833400179,0.14501248,1884.6,1884.1,0.73089315]
[1771833400379,0.54994872,1884.5,1884.1,0.73089315]
[1771833400678,0.54994872,1884.4,1884.1,0.73089315]
[1771833400882,0.14501248,1884.6,1884.1,0.73089315]
[1771833401076,0.54999824,1884.5,1884.1,0.73089315]
[1771833401276,0.54999824,1884.4,1884.1,0.73089315]
[1771833401477,0.13826553,1884.7,1884.1,0.73089315]
[1771833401776,7.7269665,1884.6,1884.1,0.73089315]
[1771833401976,0.55004896,1884.5,1884.1,0.73089315]
[1771833402176,0.13826553,1884.7,1884.1,0.73089315]
[1771833402377,0.5500528,1884.6,1884.1,0.73089315]
[1771833402680,0.13826553,1884.7,1884.1,0.73089315]
[1771833402874,0.68591472,1884.6,1884.1,0.73089315]
[1771833403074,0.13577342,1884.6,1884.1,0.73089315]
[1771833404482,0.55030455,1884.5,1884.1,0.73089315]
[1771833404684,0.13577342,1884.6,1884.1,0.73089315]
[1771833404983,0.55030455,1884.5,1884.1,0.73089315]
[1771833405184,0.13577342,1884.6,1884.1,0.73089315]
[1771833405383,0.55030478,1884.5,1884.1,0.73089315]
[1771833405582,0.13577342,1884.6,1884.1,0.73089315]